Cogmind - Beta 11.1 @@@ ROGUE MODE // 2022.11.19 @ 13:43:26 Player: darki Result: Destroyed by Y-54 Guardian with Gatling Laser Performance ------------- Evolutions (3) 1500 Regions Visited (10) 2000 Robots Destroyed (165) 825 Value Destroyed (7093) 7093 Prototype IDs (31) 620 Alien Tech Used (0) 0 Bonus (3959) 3959 TOTAL SCORE: 15997 Bonus ------- High Alert Combat Kills 1581 Follower Combat Kills 95 Entered Garrisons 600 Used RIF Installer 1500 Aligned with FarCom 300 Friendly Fire -117 Cogmind --------- Core Integrity 0/700 Matter 300/300 Energy 288/290 System Corruption 1% Temperature Cool (19) Movement Treading (240) Ox1 Location -7/Garrison Parts ------- > --- POWER (1) -------- Improved Deuterium Engine > --- PROPULSION (3) --- Light Treads > --- UTILITY (6) ------ Improved Heat Sink Relay Coupler [Sentry] (9) Relay Coupler [Hunter] (5) > --- WEAPON (3) ------- Heavy Ion Cannon Phase Cannon Magnetic Acceleration Cannon > --- INVENTORY (5) ---- Compact Matter Pod (150) Relay Coupler [Grunt] (22) Relay Coupler [Hunter] (18) YOLO Cannon Peak State ------------ > --- POWER ------------ Micro Nuclear Core > --- PROPULSION ------- Aluminum Leg Aluminum Leg Carbon-fiber Leg > --- UTILITY ---------- Power Amplifier Improved Heat Sink Huge Storage Unit Relay Coupler [Brawler] Relay Coupler [Sentry] Relay Coupler [Hunter] > --- WEAPON ----------- Heavy Ion Cannon YOLO Cannon > --- INVENTORY -------- Light Treads Light Treads Compact Battery Compact Matter Pod Compact Matter Pod Compact Matter Pod Compact Matter Pod Weapon Cycler Relay Coupler [Grunt] Relay Coupler [Grunt] Relay Coupler [Duelist] Relay Coupler [Duelist] Relay Coupler [Sentry] Relay Coupler [Hunter] Relay Coupler [Hunter] Relay Coupler [Hunter] Relay Coupler [Heavy] Relay Coupler [Behemoth] Heavy Ion Cannon Heavy Ion Cannon Heavy Ion Cannon Magnetic Acceleration Cannon Magnetic Acceleration Cannon Shock Bomb Launcher Improved Grenade Launcher [Rating: 63] Favorites ----------- Power Light Nuclear Core Engine Light Angular Momentum Engine Power Core Light Nuclear Core Propulsion Light Treads Treads Light Treads Leg VSS Leg Wheel Compact Wheel Utility Improved Heat Sink Device Improved Heat Sink Storage Huge Storage Unit Processor Advanced Targeting Computer Hackware Relay Coupler [Sentry] Protection Hardened Medium Armor Plating Weapon Heavy Ion Cannon Energy Gun Advanced Beam Rifle Energy Cannon Heavy Ion Cannon Ballistic Gun Assault Rifle Ballistic Cannon Advanced Assault Cannon Launcher Improved Grenade Launcher Special Melee Weapon Improved Datajack Build | -11 -10 -10 -10 -9 -8 -8 -8 -8 -7 -7 ------- Run | Scr Mat Min Exi Min Mat Gar Mat Gar Fac Gar Slots Evolved 6 | . . . . . 4 . . . 2 . Power . | . . . . . . . . . . . Propulsion 1 | . . . . . 1 . . . . . Utility 4 | . . . . . 2 . . . 2 . Weapon 1 | . . . . . 1 . . . . . Parts Attached 154 | . 8 7 2 1 37 34 15 23 9 18 Power 14 | . 1 2 . . 2 6 . 1 1 1 Engine 7 | . 1 2 . . 2 1 . . . 1 Core 7 | . . . . . . 5 . 1 1 . Reactor . | . . . . . . . . . . . Propulsion 48 | . 4 1 . . 13 14 3 7 3 3 Treads 26 | . 2 . . . 12 5 3 3 . 1 Leg 18 | . . . . . . 9 . 4 3 2 Wheel 4 | . 2 1 . . 1 . . . . . Hover . | . . . . . . . . . . . Flight . | . . . . . . . . . . . Utility 35 | . 1 2 . . 10 8 4 4 3 3 Device 16 | . . 2 . . 5 4 . 1 1 3 Storage 1 | . 1 . . . . . . . . . Processor 4 | . . . . . 3 1 . . . . Hackware 6 | . . . . . . . 2 2 2 . Protection 8 | . . . . . 2 3 2 1 . . Artifact . | . . . . . . . . . . . Weapon 57 | . 2 2 2 1 12 6 8 11 2 11 Energy Gun 8 | . . 1 1 1 5 . . . . . Energy Cannon 27 | . 2 . 1 . 1 3 5 5 2 8 Ballistic Gun 2 | . . 1 . . 1 . . . . . Ballistic Cannon 10 | . . . . . 4 3 . . . 3 Launcher 4 | . . . . . 1 . 1 2 . . Special Weapon . | . . . . . . . . . . . Impact Weapon . | . . . . . . . . . . . Slashing Weapon . | . . . . . . . . . . . Piercing Weapon . | . . . . . . . . . . . Special Melee Weapon 6 | . . . . . . . 2 4 . . Unidentified Prototypes 2 | . . . . . 2 . . . . . Parts Lost 61 | . . 1 . 1 7 17 . 5 4 26 Power 5 | . . . . . 2 2 . . . 1 Propulsion 18 | . . . . . 2 7 . 3 1 5 Utility 23 | . . . . . 1 3 . 2 2 15 Weapon 15 | . . 1 . 1 2 5 . . 1 5 Highest Loss Streak 16 | . . 1 . 1 5 6 . 5 3 16 To Critical Strikes . | . . . . . . . . . . . Average Slot Usage (%) 94 | . 90 97 71 99 96 96 97 90 91 85 Engine 6 | . 14 14 14 14 8 2 9 3 . . Core 3 | . . . . . . 6 . 5 7 6 Treads 14 | . . . . . 26 11 11 14 19 . Leg 7 | . 2 . . . . 14 15 12 3 18 Wheel 4 | . 25 28 28 28 . . . . . . Device 12 | . . 11 14 14 11 16 13 7 8 12 Storage 9 | . 19 14 14 14 9 9 9 9 7 6 Processor 4 | . . . . . 8 4 . . . . Hackware 3 | . . . . . . . 5 8 19 22 Protection 3 | . . . . . 3 3 8 8 5 . Energy Gun 5 | . . 3 . 25 13 . . . . . Energy Cannon 11 | . 26 16 . 2 2 15 19 15 11 15 Ballistic Cannon 6 | . . . . . 10 10 . . . 1 Naked Turns . | . . . . . . . . . . . Heaviest Build 125 | 14 96 98 98 98 110 124 125 118 113 114 Greatest Support 62 | 20 26 26 26 26 62 62 60 60 60 35 Greatest Overweight (x) 11 | . 4 3 3 3 3 11 3 5 3 11 Average Overweight (x) 2 | . 2 3 3 3 1 2 2 1 1 3 Largest Inventory Capacity 25 | . 25 25 25 25 25 25 25 25 25 25 Average Capacity 24 | . 24 25 25 25 25 25 25 25 25 23 Most Carried 25 | . 10 16 23 23 25 25 25 25 25 25 Average Carried 21 | . 8 12 21 21 22 23 24 21 24 22 Final Capacity 25 | 8 25 25 25 25 25 25 25 25 25 5 Final Carried 25 | 6 10 16 21 22 25 25 23 25 25 5 Class Distribution -------------------- 35% | Scavenger-Skirmisher 15% | Mutant 13% | Scavenger-Mutant 13% | Skirmisher 12% | Bothacker-Mutant 6% | Bothacker-Skirmisher 3% | Gunner Dominant Class ---------------- Mutant | -10/Materials Mutant | -10/Mines Mutant | -10/Exiles Scavenger-Mutant | -9/Mines Scavenger-Skirmisher | -8/Materials Scavenger-Skirmisher | -8/Garrison Bothacker-Mutant | -8/Materials Bothacker-Mutant | -8/Garrison Bothacker-Mutant | -7/Factory Scavenger-Mutant | -7/Garrison Resources | -11 -10 -10 -10 -9 -8 -8 -8 -8 -7 -7 ----------- Run | Scr Mat Min Exi Min Mat Gar Mat Gar Fac Gar Matter Collected 5666 | 200 220 221 . 59 1092 3001 213 93 393 174 Remotely . | . . . . . . . . . . . Salvage Created 5562 | . 220 393 . 122 1561 1326 375 495 183 887 Parts 308 | . 9 18 . 8 100 80 22 26 12 33 Haulers Intercepted 5 | . 1 . . . 4 . . . . . Recyclers Shooed 1 | . . . . . . . 1 . . . Parts Field Recycled . | . . . . . . . . . . . Retrieved Matter . | . . . . . . . . . . . Parts Self-Destructed . | . . . . . . . . . . . Prevented . | . . . . . . . . . . . Kills | -11 -10 -10 -10 -9 -8 -8 -8 -8 -7 -7 ------- Run | Scr Mat Min Exi Min Mat Gar Mat Gar Fac Gar Combat Hostiles Destroyed 147 | . 5 7 . 3 37 46 8 12 5 24 Melee 1 | . . . . . . . 1 . . . Guns 18 | . . . . 3 15 . . . . . Cannons 99 | . 5 7 . . 19 46 3 5 5 9 AOE 26 | . . . . . 3 . 4 6 . 13 Classes Destroyed 17 | . 2 3 . 2 6 2 . 1 1 . Worker 4 | . . 1 . . 1 . 2 . . . Builder 3 | . . . . . 1 . 2 . . . Hauler 5 | . 1 . . . 4 . . . . . Recycler 1 | . . 1 . . . . . . . . Watcher 4 | . . . . . 3 . 1 . . . Swarmer 35 | . . 3 . . 9 14 2 . 3 4 Cutter 3 | . . . . . . . . 3 . . Grunt 69 | . 5 4 . . 15 15 5 8 1 16 Brawler 8 | . . . . . 1 5 1 . . 1 Duelist 3 | . . . . . 1 1 . . . 1 Protector 1 | . . . . . . 1 . . . . Sentry 17 | . . . . 2 8 4 . 1 . 2 Demolisher 2 | . . . . 1 . 1 . . . . Specialist 5 | . . . . . 2 3 . . . . Hunter 2 | . . . . . . 2 . . . . Programmer 1 | . . . . . . . . . 1 . Heavy 1 | . . . . . 1 . . . . . Thug 1 | . . 1 . . . . . . . . Best Kill Streak 8 | . 2 3 . 2 6 6 5 8 4 8 Combat Bots Only 8 | . 2 3 . 2 6 6 3 8 4 8 Max Kills in Single Turn 4 | . 1 1 . 1 3 2 2 4 2 3 Gunslinging . | . . . . . . . . . . . Exploded 3 | . . . . . 3 . 1 3 . 3 Melee 1 | . . . . . . . 1 . . . Uniques/NPCs Destroyed . | . . . . . . . . . . . Combat | -11 -10 -10 -10 -9 -8 -8 -8 -8 -7 -7 -------- Run | Scr Mat Min Exi Min Mat Gar Mat Gar Fac Gar Damage Taken 10093 | . 360 257 . 154 2163 3563 462 716 662 1756 Core 1445 | . 97 74 . 48 135 317 18 45 101 610 Absorbed by Shields 151 | . . . . . . 147 . . . 4 Redirected to Shielding 73 | . . . . . . . 26 47 . . Core Remaining (%) 39 | 100 . . . 12 . . . 6 . . Volleys Fired 343 | . 18 21 . 11 89 111 12 22 9 50 Largest 3 | . 2 2 . 2 3 3 2 3 2 3 Hottest 205 | . 120 135 . 140 205 195 136 195 130 203 Shots Fired 789 | . 36 39 . 20 252 303 16 35 18 70 Gun 141 | . . 14 . 19 108 . . . . . Cannon 639 | . 36 25 . 1 142 303 14 30 18 70 Launcher 9 | . . . . . 2 . 2 5 . . Special . | . . . . . . . . . . . Kinetic 347 | . . 12 . . 140 189 . . . 6 Thermal 433 | . 36 27 . 20 110 114 14 30 18 64 Explosive 7 | . . . . . 2 . . 5 . . Electromagnetic 2 | . . . . . . . 2 . . . Robot Hit Streak 22 | . 4 5 . 10 22 15 10 21 7 6 Robot Miss Streak 4 | . 2 3 . 1 4 4 3 . 4 3 Penetration Max . | . . . . . . . . . . . Secondary Targets . | . . . . . . . . . . . Shots Hit Robots 443 | . 14 21 . 11 137 176 15 17 11 41 Core Hits 228 | . 7 12 . 4 70 67 11 19 6 32 Critical Kills 4 | . . . . . . . 1 2 . 1 Critical Parts Destroyed . | . . . . . . . . . . . Critical Strikes 28 | . . . . 1 12 11 1 2 . 1 Burn 8 | . . . . 1 7 . . . . . Meltdown 4 | . . . . . . . 1 2 . 1 Blast 16 | . . . . . 5 11 . . . . Melee Attacks 21 | . . . . . . . 5 13 3 . Impact . | . . . . . . . . . . . Slashing . | . . . . . . . . . . . Piercing . | . . . . . . . . . . . Sneak Attacks 3 | . . . . . . . 1 2 . . Combat Hostiles 1 | . . . . . . . 1 . . . Follow-up Attacks . | . . . . . . . . . . . Damage Inflicted 15763 | . 457 370 . 223 3521 4788 1328 1603 303 3170 Guns 1580 | . . 60 . 206 1314 . . . . . Cannons 10473 | . 242 310 . 17 1913 4780 410 762 303 1736 Explosions 3660 | . 215 . . . 273 . 900 841 . 1431 Melee . | . . . . . . . . . . . Ramming 50 | . . . . . 21 8 18 . . 3 Kinetic 5207 | . . 38 . . 1957 3092 . . . 120 Thermal 9836 | . 457 332 . 223 1270 1688 1136 1380 303 3047 Explosive 496 | . . . . . 273 . . 223 . . Electromagnetic 174 | . . . . . . . 174 . . . Impact . | . . . . . . . . . . . Slashing . | . . . . . . . . . . . Piercing . | . . . . . . . . . . . Highest Corruption 8 | . 6 6 6 6 6 8 8 8 1 1 Average Corruption 5 | . 3 6 6 6 5 6 8 8 1 1 Corruption Purged . | . . . . . . . . . . . Corruption Blocked . | . . . . . . . . . . . Effects 264 | . 4 22 7 6 38 106 25 44 . 12 Message Errors 68 | . . 7 1 1 14 30 4 7 . 4 Matter Fused 67 | . 1 3 2 1 9 29 10 11 . 1 Heat Flow Errors 26 | . 2 4 3 . 5 6 2 3 . 1 Energy Discharges 30 | . . 2 . 2 3 11 3 7 . 2 Data Loss (minor) 34 | . . 1 1 1 3 17 1 8 . 2 Data Loss (major) 15 | . 1 2 . . 1 6 2 1 . 2 Misfires 13 | . . 1 . 1 1 3 2 5 . . Alerts 3 | . . . . . 1 . 1 1 . . Weapon Failures 8 | . . 2 . . 1 4 . 1 . . Overload Shots . | . . . . . . . . . . . Overflow Damage 679 | . 39 . . . 31 124 206 70 . 209 Projectiles 474 | . 4 . . . 26 124 107 68 . 145 Explosions 205 | . 35 . . . 5 . 99 2 . 64 Melee . | . . . . . . . . . . . Knockbacks 47 | . . . . . 11 35 . . . 1 Impact . | . . . . . . . . . . . Kinetic 43 | . . . . . 11 31 . . . 1 Secondary 4 | . . . . . . 4 . . . . Self-Inflicted Damage 225 | . 86 . . . 62 . 36 41 . . Shots 6 | . 1 . . . 2 . 2 1 . . Rammed 7 | . . . . . 4 1 2 . . . Targets Rammed 8 | . . . . . 4 1 2 . . 1 Kicked 1 | . . . . . . . . . . 1 Crushed . | . . . . . . . . . . . Highest Temperature 539 | . 460 280 156 126 394 539 166 261 106 474 Average Temperature 102 | . 153 97 76 59 86 114 27 85 48 120 Received Heat Transfer 3256 | . 174 105 . 49 729 1371 180 216 54 378 Effects 30 | . 4 1 . . 1 20 . 3 . 1 Shutdowns 5 | . 1 . . . . 4 . . . . Energy Bleed 6 | . 2 . . . 1 2 . . . 1 Interference 10 | . . 1 . . . 6 . 3 . . Matter Decay 4 | . 1 . . . . 3 . . . . Short Circuit 1 | . . . . . . 1 . . . . Damage (minor) 2 | . . . . . . 2 . . . . Damage (major) 2 | . . . . . . 2 . . . . Siege Activations . | . . . . . . . . . . . Robots Corrupted . | . . . . . . . . . . . Combat Hostiles . | . . . . . . . . . . . Parts Fried . | . . . . . . . . . . . Impact Corruptions . | . . . . . . . . . . . Robots Melted 5 | . . . . . . . 1 2 . 2 Combat Hostiles 3 | . . . . . . . . 1 . 2 Parts Melted 23 | . . . . 1 8 2 2 2 2 6 Heat Transferred 13239 | . 618 703 . 518 2923 1944 1305 1508 407 3313 Parts Sabotaged . | . . . . . . . . . . . Parts Stolen . | . . . . . . . . . . . Parts Stripped . | . . . . . . . . . . . Power Chain Reactions . | . . . . . . . . . . . Missiles Intercepted . | . . . . . . . . . . . Alert | -11 -10 -10 -10 -9 -8 -8 -8 -8 -7 -7 ------- Run | Scr Mat Min Exi Min Mat Gar Mat Gar Fac Gar Peak Influence 1874 | . 286 145 . 40 314 1874 1075 982 635 1097 Initial 913 | . . 35 . . 11 177 913 601 515 437 Average 585 | . 136 75 . 26 109 1145 934 806 548 847 Maximum Alert Level 5 | . 1 . . . 1 5 3 3 2 3 Low Security (%) 36 | . 56 100 . 100 77 . . . . . Level 1 10 | . 43 . . . 22 7 . . . . Level 2 12 | . . . . . . 14 2 31 100 30 Level 3 26 | . . . . . . 28 97 68 . 69 Level 4 7 | . . . . . . 26 . . . . Level 5 6 | . . . . . . 23 . . . . High Security . | . . . . . . . . . . . Max Security . | . . . . . . . . . . . Squads Dispatched 16 | . 2 . . . 8 . 3 . 3 . Investigation 6 | . 1 . . . 5 . . . . . Extermination . | . . . . . . . . . . . Reinforcement 5 | . 1 . . . 3 . 1 . . . Assault 2 | . . . . . . . 2 . . . Garrison 3 | . . . . . . . . . 3 . Intercept . | . . . . . . . . . . . Searches Triggered . | . . . . . . . . . . . Construction Impeded 1 | . . . . . . . 1 . . . Haulers Reinforced . | . . . . . . . . . . . Active Scanning Responses . | . . . . . . . . . . . Cargo Convoy Interrupts . | . . . . . . . . . . . Stealth | -11 -10 -10 -10 -9 -8 -8 -8 -8 -7 -7 --------- Run | Scr Mat Min Exi Min Mat Gar Mat Gar Fac Gar Distress Signals 12 | . . . . . 4 4 4 . . . Communications Jammed . | . . . . . . . . . . . Distress Signals . | . . . . . . . . . . . Times Spotted 198 | . 10 7 . 7 54 57 19 16 10 18 Peak Tracking Total 8 | . 5 3 . 3 7 8 8 8 4 4 Tactical Retreats 12 | . . . . 1 1 10 . . . . Traps | -11 -10 -10 -10 -9 -8 -8 -8 -8 -7 -7 ------- Run | Scr Mat Min Exi Min Mat Gar Mat Gar Fac Gar Traps Triggered 35 | . 5 . . . 3 20 . 4 . 3 Indirectly . | . . . . . . . . . . . Trap Hack Attempts . | . . . . . . . . . . . Triggered . | . . . . . . . . . . . Disarmed . | . . . . . . . . . . . Reprogrammed . | . . . . . . . . . . . Reused . | . . . . . . . . . . . Traps Extracted . | . . . . . . . . . . . Installed . | . . . . . . . . . . . Triggered . | . . . . . . . . . . . Exploded 3 | . . . . 3 . . . . . . Machines | -11 -10 -10 -10 -9 -8 -8 -8 -8 -7 -7 ---------- Run | Scr Mat Min Exi Min Mat Gar Mat Gar Fac Gar Machines Disabled 24 | . 1 . . . 5 4 4 2 1 7 Max in Single Turn 2 | . 1 . . . 2 1 2 1 . 2 Garrison Relay 7 | . . . . . . 3 . 2 . 2 Machines Sabotaged . | . . . . . . . . . . . Garrisons Compromised . | . . . . . . . . . . . Overloaded Fab Kills . | . . . . . . . . . . . Hacking | -11 -10 -10 -10 -9 -8 -8 -8 -8 -7 -7 --------- Run | Scr Mat Min Exi Min Mat Gar Mat Gar Fac Gar Machines Accessed 16 | . 1 . 2 . 10 . 2 . 1 . Terminals 11 | . 1 . . . 9 . 1 . . . Fabricators . | . . . . . . . . . . . Repair Stations . | . . . . . . . . . . . Recycling Units . | . . . . . . . . . . . Scanalyzers . | . . . . . . . . . . . Garrison Access 3 | . . . . . 1 . 1 . 1 . Total Hacks 43 | . 2 . 5 . 30 . 4 . 2 . Successful 25 | . 2 . 5 . 14 . 2 . 2 . Failed 18 | . . . . . 16 . 2 . . . Catastrophic 3 | . . . . . 3 . . . . . Database Lockouts . | . . . . . . . . . . . Manual 19 | . . . 1 . 14 . 3 . 1 . Terminals 33 | . 2 . . . 29 . 2 . . . Fabricators . | . . . . . . . . . . . Repair Stations . | . . . . . . . . . . . Recycling Units . | . . . . . . . . . . . Scanalyzers . | . . . . . . . . . . . Garrison Access 5 | . . . . . 1 . 2 . 2 . Terminal Hacks 14 | . 2 . 5 . 7 . . . . . Record 4 | . . . 4 . . . . . . . Prototype ID Bank 3 | . 1 . . . 2 . . . . . Unreport Threat 3 | . . . . . 3 . . . . . Dispatch Records 1 | . 1 . . . . . . . . . Hauler Manifests 1 | . . . . . 1 . . . . . Zone Layout 1 | . . . . . 1 . . . . . EX-Prototype ID Bank 1 | . . . 1 . . . . . . . Fabricator Hacks . | . . . . . . . . . . . Repair Station Hacks . | . . . . . . . . . . . Recycling Unit Hacks . | . . . . . . . . . . . Scanalyzer . | . . . . . . . . . . . Garrison Access Hacks 3 | . . . . . 1 . 1 . 1 . Unlock Access 3 | . . . . . 1 . 1 . 1 . Unauthorized Hacks 8 | . . . . . 6 . 1 . 1 . Terminals 6 | . . . . . 6 . . . . . Botnet 6 | . . . . . 6 . . . . . Fabricators . | . . . . . . . . . . . Repair Stations . | . . . . . . . . . . . Recycling Units . | . . . . . . . . . . . Scanalyzers . | . . . . . . . . . . . Garrison Access 2 | . . . . . . . 1 . 1 . Restock 2 | . . . . . . . 1 . 1 . Data Cores Recovered . | . . . . . . . . . . . Used . | . . . . . . . . . . . Hacking Detections 13 | . 1 . . . 9 . 2 . 1 . Full Trace Events 4 | . . . . . 4 . . . . . Feedback Events . | . . . . . . . . . . . Feedback Blocked . | . . . . . . . . . . . Robot Schematics Acquired . | . . . . . . . . . . . Robots Built . | . . . . . . . . . . . Authchips . | . . . . . . . . . . . Time . | . . . . . . . . . . . Total Robot Build Rating . | . . . . . . . . . . . Part Schematics Acquired . | . . . . . . . . . . . Parts Built . | . . . . . . . . . . . Authchips . | . . . . . . . . . . . Time . | . . . . . . . . . . . Total Part Build Rating . | . . . . . . . . . . . Parts Repaired . | . . . . . . . . . . . Time . | . . . . . . . . . . . Parts Recycled . | . . . . . . . . . . . Recycled Matter . | . . . . . . . . . . . Retrieved Matter . | . . . . . . . . . . . Retrieved Components . | . . . . . . . . . . . Parts Scanalyzed . | . . . . . . . . . . . Part Schematics Acquired . | . . . . . . . . . . . Parts Damaged . | . . . . . . . . . . . Bothacking | -11 -10 -10 -10 -9 -8 -8 -8 -8 -7 -7 ------------ Run | Scr Mat Min Exi Min Mat Gar Mat Gar Fac Gar Used RIF Installer 3 | . . . . . . 1 . 1 . 1 Command Fork 1 | . . . . . . . . 1 . . Alert ID Control 1 | . . . . . . . . . . 1 Robots Hacked 8 | . . . . . . . 4 2 2 . Non-combat . | . . . . . . . . . . . Combat 8 | . . . . . . . 4 2 2 . Robot Hacks Applied 11 | . . . . . . . 5 4 2 . parse_system 1 | . . . . . . . 1 . . . overload_power 1 | . . . . . . . . 1 . . streamctrl_high 4 | . . . . . . . 2 2 . . formatsys_high 5 | . . . . . . . 2 1 2 . Relay Couplers Released 33 | . . . . . . 13 . 8 4 8 Machine Destruction 29 | . . . . . . 13 . 8 . 8 Programmers 4 | . . . . . . . . . 4 . Attached 6 | . . . . . . . 2 2 2 . Fabnet Peak Effective % . | . . . . . . . . . . . Robots Rewired . | . . . . . . . . . . . Allies Hacked . | . . . . . . . . . . . Hacks Repelled . | . . . . . . . . . . . Allies | -11 -10 -10 -10 -9 -8 -8 -8 -8 -7 -7 -------- Run | Scr Mat Min Exi Min Mat Gar Mat Gar Fac Gar Total Allies 11 | . . . . 3 . . 4 2 2 . Largest Group 3 | . . . . 3 . . 1 2 1 . Highest-Rated Group 40 | . . . . 40 . . 29 28 21 . Highest-Rated Ally 29 | . . . . 16 . . 29 15 21 . Total Orders 1 | . . . . . . . 1 . . . STAY 1 | . . . . . . . 1 . . . Ally Attacks 34 | . . . . 6 . . 15 6 7 . Total Damage 493 | . . . . 56 . . 138 135 164 . Kills 5 | . . . . 1 . . 3 1 . . Allies Corrupted . | . . . . . . . . . . . Allies Melted . | . . . . . . . . . . . Intel | -11 -10 -10 -10 -9 -8 -8 -8 -8 -7 -7 ------- Run | Scr Mat Min Exi Min Mat Gar Mat Gar Fac Gar Robot Analysis Total . | . . . . . . . . . . . Derelict Logs Recovered . | . . . . . . . . . . . Drone Launches . | . . . . . . . . . . . Drone Recoveries . | . . . . . . . . . . . Exploration | -11 -10 -10 -10 -9 -8 -8 -8 -8 -7 -7 ------------- Run | Scr Mat Min Exi Min Mat Gar Mat Gar Fac Gar Turns Passed 13389 | . 476 775 360 356 4257 3518 810 1244 385 1208 Spaces Moved 4185 | 1 268 488 262 187 1132 954 159 379 123 232 Core 7 | . . . . . . . . . . 7 Treads 2058 | . . . . . 1123 488 90 236 109 12 Legs 926 | 1 20 . . . . 466 69 143 14 213 Wheels 1194 | . 248 488 262 187 9 . . . . . Hover . | . . . . . . . . . . . Flight . | . . . . . . . . . . . Fastest Speed 120 | 120 120 135 135 135 123 240 240 240 240 150 Average Speed 236 | 120 141 135 135 135 243 297 299 280 251 343 Slowest Speed 890 | 120 400 135 135 135 250 890 349 560 338 890 Overloaded Moves . | . . . . . . . . . . . Propulsion Burnouts . | . . . . . . . . . . . Robots Hopped . | . . . . . . . . . . . Cave-ins Triggered . | . . . . . . . . . . . Exploration Rate (%) 46 | 2 47 73 67 28 90 70 23 48 4 55 Regions Visited 10 Branch Regions 3 Pre-discovered Areas 2 | . . 1 1 . . . . . . . Known Exits Taken 3 | . . . . . 1 . 1 . 1 . Unknown Exits Taken 5 | 1 1 1 1 1 . . . . . . Scrap Searched 2 | . . 1 . 1 . . . . . . Spaces Dug 67 | . . . . . 12 . . 28 . 27 Terrain Destroyed 434 | . 46 . . . 64 2 80 151 2 89 Melee . | . . . . . . . . . . . Projectile 74 | . . . . . 53 2 5 4 2 8 AOE 360 | . 46 . . . 11 . 75 147 . 81 Terrain Rammed . | . . . . . . . . . . . Walls Destroyed . | . . . . . . . . . . . Machines Disabled . | . . . . . . . . . . . Actions | -11 -10 -10 -10 -9 -8 -8 -8 -8 -7 -7 --------- Run | Scr Mat Min Exi Min Mat Gar Mat Gar Fac Gar Total 7004 | . 327 562 269 273 2446 1407 461 519 185 555 Wait 2002 | . 28 42 . 67 1125 180 261 50 32 217 Move 4176 | . 267 487 261 186 1132 953 158 378 122 232 Hop . | . . . . . . . . . . . Pick Up 106 | . 3 3 4 5 26 36 . 14 6 9 Fast Attach 43 | . 3 3 . . 12 11 2 4 . 8 Attach 65 | . . 1 2 1 15 16 5 11 6 8 Detach 20 | . . 1 2 . 3 2 5 4 1 2 Swap 47 | . 5 3 . . 10 8 8 8 3 2 Drop 95 | . 3 1 . 3 30 32 3 9 3 11 Fire 343 | . 18 21 . 11 89 111 12 22 9 50 Melee 21 | . . . . . . . 5 13 3 . Ram . | . . . . . . . . . . . Kick 1 | . . . . . . . . . . 1 Crush 7 | . . . . . 4 1 2 . . . Escape Stasis 78 | . . . . . . 57 . 6 . 15 Rewire . | . . . . . . . . . . . Trap . | . . . . . . . . . . . Miscellaneous . | . . . . . . . . . . . Route ------- -11/Scrapyard -10/Materials (discovered 2 exits: [*Mat] / [*Min]) -10/Mines (discovered 3 exits: [*Mat x2] / *Exi) -10/Exiles -9/Mines -8/Materials (discovered 4 exits: *Fac x3 / Gar) -8/Garrison (discovered 3 exits: *Mat x3) -8/Materials -8/Garrison -7/Factory -7/Garrison (discovered 1 exit: [*Fac]) History --------- Turn | Location | Event 1 | -11/Scrapyard | Discovered new exit (range 0) 1 | -11/Scrapyard | Entered Materials 153 | -10/Materials | Discovered new exit (range 10) 286 | -10/Materials | Discovered new exit (range 15) 305 | -10/Materials | Build established: Mutant 477 | -10/Materials | Entered Mines 486 | -10/Mines | Met a Derelict bent on vengeance 870 | -10/Mines | Core integrity fell below 50% 1002 | -10/Mines | Discovered new exit (range 5) 1130 | -10/Mines | Discovered new exit (range 16) 1140 | -10/Mines | Learned location of Storage (-7) 1247 | -10/Mines | Deemed a non-threat by the Exiles lab entrance 1247 | -10/Mines | Discovered new exit (range 5) 1252 | -10/Mines | Entered Exiles 1301 | -10/Exiles | Met 8R-AWN 1321 | -10/Exiles | Met EX-HEX 1359 | -10/Exiles | Met EX-BIN 1378 | -10/Exiles | Aligned with FarCom system 1379 | -10/Exiles | Given EX-Vault access code 1417 | -10/Exiles | Opened EX-Vault 1425 | -10/Exiles | Found YOLO Cannon 1455 | -10/Exiles | Warned to stay clear of 0b10 Research branches 1492 | -10/Exiles | Met EX-DEC 1552 | -10/Exiles | Learned location of Zion (-6) 1598 | -10/Exiles | Discovered new exit (range 10) 1612 | -10/Exiles | Left Exiles lab with YOLO Cannon 1612 | -10/Exiles | Entered Mines 1734 | -9/Mines | Joined a pair of Derelicts in attacking an 0b10 outpost 1829 | -9/Mines | Assisted by bots powering up and referring to "LRC-V3" 1830 | -9/Mines | Assembled infested the area 1915 | -9/Mines | Build established: Scavenger-Mutant 1927 | -9/Mines | Core integrity fell below 20% 1948 | -9/Mines | Discovered new exit (range 12) 1968 | -9/Mines | Entered Materials 1968 | -8/Materials | Evolved 4 slots: Propulsion x1, Utility x2, Weapon x1 2267 | -8/Materials | Build established: Scavenger-Skirmisher 2746 | -8/Materials | Discovered new exit (range 9) 3955 | -8/Materials | Build established: Scavenger-Mutant 4482 | -8/Materials | Discovered new exit (range 10) 4517 | -8/Materials | Lost 5 parts (2p2n1w) 4752 | -8/Materials | Build established: Scavenger-Skirmisher 5215 | -8/Materials | Build established: Skirmisher 5828 | -8/Materials | Discovered new exit (range 14) 6225 | -8/Materials | Identified exit to Garrison 6225 | -8/Materials | Entered Garrison 6516 | -8/Garrison | Triggered checkpoint 6516 | -8/Garrison | Triggered checkpoint 6575 | -8/Garrison | Build established: Gunner 6775 | -8/Garrison | Garrison Relay disabled 6872 | -8/Garrison | Triggered checkpoint 6887 | -8/Garrison | Triggered checkpoint 6962 | -8/Garrison | Triggered checkpoint 7205 | -8/Garrison | Build established: Scavenger-Skirmisher 7372 | -8/Garrison | Triggered checkpoint 7706 | -8/Garrison | Lost 6 parts (3n3w) 7762 | -8/Garrison | Core integrity fell below 50% 7897 | -8/Garrison | Discovered new exit (range 10) 7950 | -8/Garrison | Triggered checkpoint 8048 | -8/Garrison | Lost 4 parts (1p2n1u) 8082 | -8/Garrison | Garrison Relay disabled 8130 | -8/Garrison | Triggered checkpoint 8614 | -8/Garrison | Discovered new exit (range 14) 9102 | -8/Garrison | Triggered checkpoint 9292 | -8/Garrison | Discovered new exit (range 13) 9355 | -8/Garrison | Installed Relay Interface Framework 9486 | -8/Garrison | Triggered checkpoint 9497 | -8/Garrison | Core integrity fell below 20% 9576 | -8/Garrison | Garrison Relay disabled 9743 | -8/Garrison | Entered Materials 9893 | -8/Materials | Build established: Bothacker-Skirmisher 10354 | -8/Materials | Build established: Bothacker-Mutant 10493 | -8/Materials | Identified exit to Garrison 10543 | -8/Materials | First assault squad dispatched 10553 | -8/Materials | Entered Garrison 10565 | -8/Garrison | Expanded RIF knowledge: Command Fork 10634 | -8/Garrison | Triggered checkpoint 10664 | -8/Garrison | Garrison Relay disabled 11027 | -8/Garrison | Lost 5 parts (3n2u) 11092 | -8/Garrison | Triggered checkpoint 11145 | -8/Garrison | Destroyed 8 combat bots 11296 | -8/Garrison | Triggered checkpoint 11353 | -8/Garrison | Garrison Relay disabled 11546 | -8/Garrison | Discovered new exit (range 14) 11797 | -8/Garrison | Entered Factory 11797 | -7/Factory | Evolved 2 slots: Utility x2 11965 | -7/Factory | Garrison activated, responded to threat 12036 | -7/Factory | Identified exit to Garrison 12152 | -7/Factory | Lost 3 parts (1n1u1w) 12182 | -7/Factory | Entered Garrison 12199 | -7/Garrison | Expanded RIF knowledge: Alert ID Control 12268 | -7/Garrison | Triggered checkpoint 12378 | -7/Garrison | Garrison Relay disabled 12534 | -7/Garrison | Triggered checkpoint 12579 | -7/Garrison | Destroyed 7 combat bots 12693 | -7/Garrison | Triggered checkpoint 12744 | -7/Garrison | Triggered checkpoint 12771 | -7/Garrison | Triggered checkpoint 12815 | -7/Garrison | Destroyed 8 combat bots 13043 | -7/Garrison | Discovered new exit (range 12) 13122 | -7/Garrison | Triggered checkpoint 13241 | -7/Garrison | Garrison Relay disabled 13276 | -7/Garrison | Core integrity fell below 50% 13287 | -7/Garrison | Core integrity fell below 20% 13289 | -7/Garrison | Lost 8 parts (1p3n3u1w) 13344 | -7/Garrison | Lost 16 parts (12u4w) 13390 | -7/Garrison | Destroyed by Y-54 Guardian with Gatling Laser Last Messages --------------- 13313_ Hvy. Ion Cannon crushed and broken. 13313_ Relay Coupler [Grunt] crushed and broken. 13313_ Imp. Grenade Launcher crushed and broken. 13313_ Relay Coupler [Hunter] crushed and broken. 13313_ Com. Matter Pod crushed and broken. 13313_ Relay Coupler [Sentry] crushed and broken. 13313_ Com. Matter Pod crushed and broken. 13314_ Acquired 5 matter. 13319_ Acquired 36 matter. 13322_ Acquired Imp. Deuterium Engine. 13340_ Y-54 Guardian destroyed. 13344_ QJLA7SKVEB%VF4U&EAM&08 13345_ Acquired Lgt. Treads. 13350_ Acquired Imp. Heat Sink. 13351_ Acquired 72 matter. 13355_ Acquired Hvy. Ion Cannon. 13363_ Acquired Magnetic Acceleration Cannon. 13365_ Acquired 20 matter. 13379_ G-47 Trooper destroyed. 13380_ Acquired 6 matter. Map ----- +----------------------------------------------------+ | ??????????????????????????????????????????? | | ???????????????????????????????????######## | | ?????????????????????????????????? | | ?????????????????????????????????? | | ??????????????????????????????????? | | ???????????????????????????????????????#"" | | ???????????????????????????????????????#### | | ????????????????????????????????????????# | | ??????????????????????????????????????### | | ?????????????????????????????????????##"# | | ?????????????????????????????????????# | | ?????????????????????????????????????# ## | | ?????????????????????????????????????# | | ????????????????????????????????###### | | ?????????????????????????????? | | ???????????????????????????????# ##### "" | | ?????????????????????????????????????# # | | ?????????????????????????????????????#?## | | ???????????????#######??????????????????# | | ???????????????#""[""#??????????????????## | | ????????????????#!!%##################???## | | ????????????????#!Y=YY[ #????? | | ????????????????##%####### ####### #????? | | ?????????????????#[#?????# #?????# #????? | | ?????????????????#!#?????#####?????#=#????? | | ?????????????????#@#??????????###### ###### | | ???????????????###%###????????# =^ | | ???????????????#!=[ !#????????# | | ???????????????# #????????# ## ###### | | ???????????????#l Y#????????# ## #????? | | ???????????????## ##????????# ## #????? | | ????????????????##+##?????????# s## #????? | | ?????????????????? ???????????# s## ###### | | ?????????????????? ???????????# s## # ![ | | ?????????????????? ???????????# ## ]* | | ?????????????????? ???????????# s ## | | ?????????????????? ???????????# ####[[ !! | | ??????????????????"??????????? ??###### | | ?????????????????????????????? < ???????? | | ?????????????????????????????? #??????? | | ?????????????????????????????## ##??????? | | ??????????????????????????????#####???????? | | ??????????????????????????????????????????? | | ??????????????????????????????????????????? | | ??????????????????????????????????????????? | | ??????????????????????????????????????????? | | ??????????????????????????????????????????? | | ??????????????????????????????????????????? | | ??????????????????????????????????????????? | | ??????????????????????????????????????????? | +----------------------------------------------------+ Best States ------------- Heat Dissipation 59 Energy Generation 18 Energy Capacity 290 Matter Stores 300 Matter Capacity 300 Sight Range 16 Robot Scan Range 15 Terrain Scan Density 10 Power Amplification 20 Armor Coverage 600 Weapon Shielding 66 Weapon Cycling 15 Evasion (%) 50 Targeting Accuracy 8 Target Analysis 5 Recoil Reduction 3 Particle Charging 20 Relay Coupler Types 3 Relay Coupler Value 43 Item Schematics ----------------- None Robot Schematics ------------------ None Fabricated ------------ Nothing Alien Tech Used ----------------- None Achievements -------------- None Challenges ------------ None Game ------ Seed CompactNovaDriver Manual? 0 Play Time 01:20:04 Cumulative 129.2 hours Start 2022.11.18 @ 13:56:16 End 2022.11.19 @ 13:43:26 Sessions 5 Manual Loads 0 Difficulty Rogue Special Mode None Game No. 144 Rogue 144 Adventurer 0 Explorer 0 Win Type - Total 0 Types 0/0/0/0/0/0/0/0/0 Lore% 53 Gallery% 68 Achievement% 53 Wizard Run 0 Options --------- ASCII 0 Keyboard 0 Movement Mouse Keybinds 0 Fullscreen 1 Font 18/SmallcapsGlow Map View 76x50 Tactical HUD 1 Map Filters NONE Filters NONE Steam 1 RUN: f3e72b0d-cc0a-4fa8-bd72-ed2a527c0eb2